{"text_format":"1","workbook":"xlsx","n_sheets":2,"sheets":["Камеральная проверка","Экспертная оценка заседания ППк"],"not_rendered":{"charts":0,"images":0,"macros":1,"external_links":0,"defined_names":1,"comments":0,"pivot_tables":0},"unopened":[],"bounds":{"document_bytes":16777216,"sheet_cells":100000,"rows_first":2000,"rows_last":500,"rows_between":2000,"halvings":0,"cell_chars":16384,"cell_head_chars":4096},"cells_cut":0,"cells_raw":0,"read":"whole","date_system":"1900"}

{"sheet":"Камеральная проверка","index":0,"n_rows":31,"n_cols":20,"rows_kept":31,"cut":false,"hidden":false,"merged":[[30,1,30,2],[0,0,0,17],[2,0,2,1],[25,1,27,1]]}
["Камеральная обработка документов ППк"]
[null,null,null,"МБДОУ N 1 \"Сибирячок\" ","МАДОУ ЦРР N 2 \"Дельфин\" ","МБОУ СОШ N 8","МБОУ СОШ N 10 \"Пересвет\"","Наименование ОО","Наименование ОО","Наименование ОО","Наименование ОО","Наименование ОО","Наименование ОО","Наименование ОО","Наименование ОО","Наименование ОО","Наименование ОО","Наименование ОО"]
["Показатели мониторинга",null,"Код ОО",532301,532302,932008,932010,"Код ОО","Код ОО","Код ОО","Код ОО","Код ОО","Код ОО","Код ОО","Код ОО","Код ОО","Код ОО","Код ОО"]
[1,"Наличие приказа о создании ППк с утверждённым составом специалистов ППк ","а) документ не представлен, или не соответствует требованиям 0\nб) документ представлен, скорее не соответствует 1\nв) документ представлен, скорее соответствует требованиям 2\nг) документ представлен, полностью соответствует требованиям 3\n\n\n\n",3,3,3,3]
[2,"Наличие Положения о Психолого-педагогическом консилиуме в ОО ","а) документ не представлен, или не соответствует требованиям 0\nб) документ представлен, скорее не соответствует 1\nв) документ представлен, скорее соответствует требованиям 2\nг) документ представлен, полностью соответствует требованиям 3\n\n\n",3,3,2,2]
[3,"Наличие Графика проведения плановых заседаний ППк на учебный год","а) документ не представлен, или не соответствует требованиям 0\nб) документ представлен, скорее не соответствует 1\nв) документ представлен, скорее соответствует требованиям 2\nг) документ представлен, полностью соответствует требованиям 3\n\n",3,3,3,3]
[4,"Наличие Журнала учета заседаний ППк и обучающихся, прошедших ППк ","а) документ не представлен, или не соответствует требованиям 0\nб) документ представлен, скорее не соответствует 1\nв) документ представлен, скорее соответствует требованиям 2\nг) документ представлен, полностью соответствует требованиям 3\n\n\n\n",3,3,3,2]
[5,"Наличие Журнала регистрации коллегиальных заключений психолого-педагогического консилиума ","а) документ не представлен, или не соответствует требованиям 0\nб) документ представлен, скорее не соответствует 1\nв) документ представлен, скорее соответствует требованиям 2\nг) документ представлен, полностью соответствует требованиям 3\n\n\n\n",3,3,3,3,null,null,null,null,null,null,null,null,null,null,null,null," "]
[6,"Наличие Протоколов заседаний ППк","а) документ не представлен, или не соответствует требованиям 0\nб) документ представлен, скорее не соответствует 1\nв) документ представлен, скорее соответствует требованиям 2\nг) документ представлен, полностью соответствует требованиям 3\n\n\n\n",2,3,3,3]
[7,"Наличие Журнала направлений обучющихся на ПМПК ","а) документ не представлен, или не соответствует требованиям 0\nб) документ представлен, скорее не соответствует 1\nв) документ представлен, скорее соответствует требованиям 2\nг) документ представлен, полностью соответствует требованиям 3\n\n\n\n",3,3,3,3]
[8,"Наличие результатов компексного обследования обучающегося","а) документ не представлен, или не соответствует требованиям 0\nб) документ представлен, скорее не соответствует 1\nв) документ представлен, скорее соответствует требованиям 2\nг) документ представлен, полностью соответствует требованиям 3\n\n\n\n",3,3,2,2]
[9,"Наличие характеристики или педагогического представления на обучающегося","а) документ не представлен, или не соответствует требованиям 0\nб) документ представлен, скорее не соответствует 1\nв) документ представлен, скорее соответствует требованиям 2\nг) документ представлен, полностью соответствует требованиям 3\n\n\n\n",3,3,2,0]
[10,"Наличие коллегиального заключения консилиума","а) документ не представлен, или не соответствует требованиям 0\nб) документ представлен, скорее не соответствует 1\nв) документ представлен, скорее соответствует требованиям 2\nг) документ представлен, полностью соответствует требованиям 3\n\n\n\n",3,3,2,3]
[11,"Наличие представления психолого-педагогического консилиума на обучающегося для предоставления на ПМПК","а) документ не представлен, или не соответствует требованиям 0\nб) документ представлен, скорее не соответствует 1\nв) документ представлен, скорее соответствует требованиям 2\nг) документ представлен, полностью соответствует требованиям 3\n\n\n\n",3,3,2,3]
[12,"Согласие родителей (законных представителей) на обследование и психолого-педагогическое сопровождение ребенка","а) документ не представлен, или не соответствует требованиям 0\nб) документ представлен, скорее не соответствует 1\nв) документ представлен, скорее соответствует требованиям 2\nг) документ представлен, полностью соответствует требованиям 3\n\n\n\n",3,2,2,1]
[13,"Наличие данных об обучении ребёнка в классе/группе","а) документ не представлен, или не соответствует требованиям 0\nб) документ представлен, скорее не соответствует 1\nв) документ представлен, скорее соответствует требованиям 2\nг) документ представлен, полностью соответствует требованиям 3\n\n\n\n",3,3,0,3]
[14,"Наличие данных по коррекционно-развивающей работе, проводимой специалистами психолого-педагогического сопровождения ","а) документ не представлен, или не соответствует требованиям 0\nб) документ представлен, скорее не соответствует 1\nв) документ представлен, скорее соответствует требованиям 2\nг) документ представлен, полностью соответствует требованиям 3\n\n\n\n",2,3,2,3]
[15,"План работы ППк","а) документ не представлен, или не соответствует требованиям 0\nб) документ представлен, скорее не соответствует 1\nв) документ представлен, скорее соответствует требованиям 2\nг) документ представлен, полностью соответствует требованиям 3\n\n\n\n",2,3,3,3]
[16,"Мероприятия по выявлению детей с трудностями в обучении, имеющих особенности в развитии, социальной адаптации и поведении для последующего принятия решений об организации психолого-педагогического сопровождения","1 б. – да; 0 б. – нет",1,1,1,1]
[17,"Консультативная помощь специалистов ППк","1 б. – да; 0 б. – нет",1,1,1,1]
[18,"Противодействие дискриминации и буллингу","1 б. – да; 0 б. – нет",0,0,1,0]
[19,"Организация психолого-педагогического сопровождения","1 б. – да; 0 б. – нет",1,1,1,1]
[20,"Мониторинг эффективности психолого-педагогического сопровождения обучающихся. Анализ деятельности ППк","1 б. – да; 0 б. – нет",1,1,1,1]
[21,"Социальные партнеры","1 б. – да; 0 б. – нет",1,1,1,1]
[22,"Повышение квалификации специалистов ППк. Организация наставничества","1 б. – да; 0 б. – нет",1,1,1,1]
[null,"Итог","Всего баллов",{"$f":"SUM(D4:D25)","v":48},{"$f":"SUM(E4:E25)","v":50},{"$f":"SUM(F4:F25)","v":42},43,0,0,0,0,0,0,0,0,0,0,0]
[null,null,"% от общего количества баллов",{"$f":"D26/52","v":0.92307692307692313},{"$f":"E26/52","v":0.96153846153846156},{"$f":"F26/52","v":0.80769230769230771},0.82692307692307687,0,0,0,0,0,0,0,0,0,0,0]
[null,null,"уровень (В, С, Н,)","в","в","в","в"]
[]
[]
[null,"Итог:\nнизкий уровень - менее 18 баллов - менее 35 %\nсредний уровень - 19 - 36 баллов - 36 % - 69 %\nвысокий уровень - более 37 баллов, максимально 52 балла - 70% - 100 %\n"]

{"sheet":"Экспертная оценка заседания ППк","index":1,"n_rows":20,"n_cols":22,"rows_kept":20,"cut":false,"hidden":false,"merged":[[19,1,19,2]]}
["Экспертная оценка заседания  ППк"]
[null,null,null,"МБДОУ N 1 \"Сибирячок\" ","МАДОУ ЦРР N 2 \"Дельфин\" ","МБОУ СОШ N 8","МБОУ СОШ N 10 \"Пересвет\"","Наименование ОО","Наименование ОО","Наименование ОО","Наименование ОО","Наименование ОО","Наименование ОО","Наименование ОО","Наименование ОО","Наименование ОО","Наименование ОО","Наименование ОО","Наименование ОО","Наименование ОО","Наименование ОО","Наименование ОО"]
[null,"    Показатели мониторинга","Код ОО",532301,532302,932008,932010,"Код ОО","Код ОО","Код ОО","Код ОО","Код ОО","Код ОО","Код ОО","Код ОО","Код ОО","Код ОО","Код ОО","Код ОО","Код ОО","Код ОО","Код ОО"]
[1,"Процедура проведения заседания консилиума ","а) не соблюдена 0\nб) скорее не соблюдена 1\nв) скорее соблюдена 2\nг) полностью соблюдена 3\n",3,3,2,2]
[null,"Принципы деятельности ППк ","а) не соблюдаются 0\nб) скорее не соблюдаются 1\nв) скорее соблюдаются 2\nг) полностью соблюдаются 3\n",3,3,3,2]
[2,"Сведения об успеваемости обучающегося (рассматриваются результаты усвоения ребёнком содержания образовательной программы, при этом имеются подтверждающие материалы,  не противоречащие выводам)","а) информация не предоставлена 0\nб) информация предоставлена, имеются противоречия, нет подтверждающих материалов 1\nв) информация предоставлена, имеются некоторые расхождения в выводах 2\nг) информация предоставлена в полном объеме 3\n",3,3,3,3]
[3,"Оценка социально-психологической адаптации обучающегося (обсуждается степень социализации и адаптации обучающегося)","а) информация не предоставлена 0\nб) информация предоставлена, имеются противоречия, нет подтверждающих материалов 1\nв) информация предоставлена, имеются некоторые расхождения в выводах 2\nг) информация предоставлена в полном объеме 3\n",3,3,3,3]
[4,"Индивидуально-психологические особенности развития обучающегося (рассматриваются результаты обследования обучающегося узкими специалистами с определением уровня их актуального развития)","а) информация не предоставлена 0\nб) информация предоставлена, имеются противоречия, нет подтверждающих материалов 1\nв) информация предоставлена, имеются некоторые расхождения в выводах 2\nг) информация предоставлена в полном объеме 3\n",3,3,3,3]
[5,"Коллегиальное заключение ППк (итогом работы консилиума является принятие коллегиального заключения консилиума (создание СОУ, разработка ИОМ c распределением наргузки на ребенка в соответствии с СанПин) в соответсии с выявленными проблемами","а) информация не предоставлена 0\nб) информация предоставлена, имеются противоречия, нет подтверждающих материалов 1\nв) информация предоставлена, имеются некоторые расхождения в выводах 2\nг) информация предоставлена в полном объеме 3\n",3,3,2,3]
[7,"Рекомендации членов ППк педагогам","а) информация не предоставлена 0\nб) информация предоставлена, имеются противоречия, нет подтверждающих материалов 1\nв) информация предоставлена, имеются некоторые расхождения в выводах 2\nг) информация предоставлена в полном объеме 3\n",3,3,3,3]
[8,"Рекомендации членов ППк родителям (законным представителям)","а) информация не предоставлена 0\nб) информация предоставлена, имеются противоречия, нет подтверждающих материалов 1\nв) информация предоставлена, имеются некоторые расхождения в выводах 2\nг) информация предоставлена в полном объеме 3\n",3,3,0,3]
[9,"Ознакомление родителей (законных представителей) с коллегиальным заключением","а) процедура ознакомления не соблюдена 0\nб) процедура ознакомления скорее не соблюдена 1\nв) процедура ознакомления скорее соблюдена 2\nг) процедура ознакомления полностью соблюдена 3\n\n\n",2,3,2,3]
[null,"Коммуникация между членами ППк","а) не наблюдается 0\nб) нет согласованности по достижению общего результата 1\nв) наблюдается взаимодействие и согласованность по достижению общего результата 2\nг) эффективная, деловая, полное взаимодействие и согласованность по достижению общего результата 3\n",2,3,2,2]
[null,"Итог","Среднее / на баллы",{"$f":"AVERAGE(D4:D13)/3","v":0.93333333333333324},{"$f":"AVERAGE(E4:E13)/3","v":1},0.76666666666666661,0.9,{"$error":"#DIV/0!"},{"$error":"#DIV/0!"},{"$error":"#DIV/0!"},{"$error":"#DIV/0!"},{"$error":"#DIV/0!"},{"$error":"#DIV/0!"},{"$error":"#DIV/0!"},{"$error":"#DIV/0!"},{"$error":"#DIV/0!"},{"$error":"#DIV/0!"},{"$error":"#DIV/0!"},{"$error":"#DIV/0!"},{"$error":"#DIV/0!"},{"$error":"#DIV/0!"},{"$error":"#DIV/0!"}]
[null,null,"Всего баллов",{"$f":"SUM(D4:D13)","v":28},{"$f":"SUM(E4:E13)","v":30},23,27,0,0,0,0,0,0,0,0,0,0,0,0,0,0,0]
[null,null,"уровень (В, С, Н)","в","в","в","в"]
[]
[]
[]
[null,"Итог:\nнизкий уровень - менее 10 баллов - менее 35 %\nсредний уровень - 11 - 21 балл - 36 % - 69 %\nвысокий уровень - более 22 баллов, максимально 30 баллов - 70% - 100 %\n"]